[Event "Titled Tuesday Blitz October 11 Early 2022"]
[White "Kaidanov, Gregory"]
[Black "Xu, Yi"]
[WhiteFideId "2008564"]
[BlackFideId "8605564"]
[WhiteElo "2668"]
[BlackElo "2471"]
[Result "0-1"]
[Round "06"]
[TimeControl "180+1"]
[Date "2022.10.11"]
[WhiteClock "0:00:03"]
[BlackClock "0:00:05"]

1. Nf3 {[%clk 0:03:00]}  d5 {[%clk 0:02:59]} 2. g3 {[%clk 0:03:00]}  Nd7 {[%clk 0:02:59]} 3. d4 {[%clk 0:02:58]}  Nb6 {[%clk 0:02:59]} 4. a4 {[%clk 0:02:54]}  a5 {[%clk 0:02:59]} 5. Nc3 {[%clk 0:02:55]}  Bf5 {[%clk 0:02:59]} 6. Bg2 {[%clk 0:02:53]}  Nf6 {[%clk 0:02:57]} 7. Nh4 {[%clk 0:02:53]}  e6 {[%clk 0:02:57]} 8. Nxf5 {[%clk 0:02:49]}  exf5 {[%clk 0:02:57]} 9. Qd3 {[%clk 0:02:45]}  g6 {[%clk 0:02:55]} 10. O-O {[%clk 0:02:43]}  c6 {[%clk 0:02:52]} 11. f3 {[%clk 0:02:40]}  Bg7 {[%clk 0:02:50]} 12. Rd1 {[%clk 0:02:38]}  O-O {[%clk 0:02:49]} 13. e4 {[%clk 0:02:38]}  fxe4 {[%clk 0:02:49]} 14. fxe4 {[%clk 0:02:39]}  dxe4 {[%clk 0:02:49]} 15. Nxe4 {[%clk 0:02:39]}  Nxe4 {[%clk 0:02:46]} 16. Bxe4 {[%clk 0:02:39]}  h5 {[%clk 0:02:40]} 17. c3 {[%clk 0:02:35]}  h4 {[%clk 0:02:40]} 18. g4 {[%clk 0:02:32]}  Nd5 {[%clk 0:02:36]} 19. Rf1 {[%clk 0:02:26]}  Qd7 {[%clk 0:02:35]} 20. Bf3 {[%clk 0:02:17]}  Rae8 {[%clk 0:02:34]} 21. Bd2 {[%clk 0:02:17]}  f5 {[%clk 0:02:21]} 22. gxf5 {[%clk 0:02:14]}  Rxf5 {[%clk 0:02:21]} 23. Bg2 {[%clk 0:02:12]}  Ref8 {[%clk 0:02:14]} 24. Rxf5 {[%clk 0:02:11]}  Qxf5 {[%clk 0:02:14]} 25. Qxf5 {[%clk 0:02:10]}  Rxf5 {[%clk 0:02:14]} 26. Rf1 {[%clk 0:02:09]}  Rxf1+ {[%clk 0:02:13]} 27. Kxf1 {[%clk 0:02:08]}  Bf6 {[%clk 0:02:09]} 28. Bh3 {[%clk 0:02:03]}  Kf7 {[%clk 0:02:00]} 29. Bc8 {[%clk 0:01:58]}  b6 {[%clk 0:02:01]} 30. Bb7 {[%clk 0:01:58]}  Ne7 {[%clk 0:01:35]} 31. Bf4 {[%clk 0:01:57]}  Ke6 {[%clk 0:01:29]} 32. Ke2 {[%clk 0:01:48]}  g5 {[%clk 0:01:21]} 33. Bb8 {[%clk 0:01:40]}  g4 {[%clk 0:00:56]} 34. Ba6 {[%clk 0:01:38]}  Kd7 {[%clk 0:00:51]} 35. Bd3 {[%clk 0:01:32]}  Ke6 {[%clk 0:00:49]} 36. Be4 {[%clk 0:01:27]}  Nd5 {[%clk 0:00:46]} 37. Kd3 {[%clk 0:01:25]}  c5 {[%clk 0:00:38]} 38. dxc5 {[%clk 0:01:16]}  bxc5 {[%clk 0:00:38]} 39. Ke2 {[%clk 0:01:04]}  Be5 {[%clk 0:00:35]} 40. Ba7 {[%clk 0:00:45]}  Bd6 {[%clk 0:00:25]} 41. c4 {[%clk 0:00:32]}  Nb4 {[%clk 0:00:08]} 42. Bb6 {[%clk 0:00:30]}  Bxh2 {[%clk 0:00:08]} 43. Bxa5 {[%clk 0:00:26]}  Bd6 {[%clk 0:00:06]} 44. Bxb4 {[%clk 0:00:24]}  cxb4 {[%clk 0:00:06]} 45. a5 {[%clk 0:00:24]}  Ke5 {[%clk 0:00:05]} 46. Bb7 {[%clk 0:00:21]}  Kf4 {[%clk 0:00:04]} 47. Bc8 {[%clk 0:00:19]}  Bc5 {[%clk 0:00:02]} 48. Kf1 {[%clk 0:00:17]}  Kg3 {[%clk 0:00:02]} 49. a6 {[%clk 0:00:17]}  h3 {[%clk 0:00:02]} 50. b3 {[%clk 0:00:17]}  Kf3 {[%clk 0:00:03]} 51. Bd7 {[%clk 0:00:16]}  Kg3 {[%clk 0:00:02]} 52. Bc8 {[%clk 0:00:16]}  Bb6 {[%clk 0:00:03]} 53. Bd7 {[%clk 0:00:15]}  Kf3 {[%clk 0:00:03]} 54. Bc8 {[%clk 0:00:15]}  Kf4 {[%clk 0:00:03]} 55. Bd7 {[%clk 0:00:14]}  Kg5 {[%clk 0:00:03]} 56. Bc8 {[%clk 0:00:13]}  Kh4 {[%clk 0:00:03]} 57. Bd7 {[%clk 0:00:12]}  Bc5 {[%clk 0:00:04]} 58. Bc8 {[%clk 0:00:11]}  g3 {[%clk 0:00:04]} 59. Bb7 {[%clk 0:00:11]}  Kg4 {[%clk 0:00:04]} 60. Bc6 {[%clk 0:00:09]}  Kf4 {[%clk 0:00:05]} 61. Bb7 {[%clk 0:00:08]}  Ke3 {[%clk 0:00:05]} 62. Bc6 {[%clk 0:00:03]}  Kd2 {[%clk 0:00:05]} 0-1


[Site "https://www.chess.com"]

[Event "Titled Tuesday Blitz October 11 Early 2022"]
[White "Kalajzic, Ivan"]
[Black "Reprintsev, Alexander"]
[WhiteFideId "14506378"]
[BlackFideId "14100541"]
[WhiteElo "2163"]
[BlackElo "2230"]
[Result "1-0"]
[Round "06"]
[TimeControl "180+1"]
[Date "2022.10.12"]
[WhiteClock "0:00:19"]
[BlackClock "0:00:02"]

1. b3 {[%clk 0:02:42]}  d5 {[%clk 0:02:52]} 2. Bb2 {[%clk 0:02:38]}  Bf5 {[%clk 0:02:52]} 3. e3 {[%clk 0:02:38]}  Nd7 {[%clk 0:02:52]} 4. Nf3 {[%clk 0:02:38]}  Ngf6 {[%clk 0:02:52]} 5. d4 {[%clk 0:02:38]}  g6 {[%clk 0:02:52]} 6. Bd3 {[%clk 0:02:38]}  Bxd3 {[%clk 0:02:51]} 7. cxd3 {[%clk 0:02:39]}  Bg7 {[%clk 0:02:51]} 8. Nbd2 {[%clk 0:02:39]}  O-O {[%clk 0:02:51]} 9. O-O {[%clk 0:02:40]}  a5 {[%clk 0:02:51]} 10. Ne5 {[%clk 0:02:39]}  a4 {[%clk 0:02:50]} 11. b4 {[%clk 0:02:24]}  a3 {[%clk 0:02:49]} 12. Bc3 {[%clk 0:02:24]}  Nb6 {[%clk 0:02:37]} 13. Rc1 {[%clk 0:02:16]}  c6 {[%clk 0:02:33]} 14. Nb3 {[%clk 0:02:12]}  Nfd7 {[%clk 0:02:24]} 15. Nc5 {[%clk 0:02:03]}  Nxe5 {[%clk 0:02:22]} 16. dxe5 {[%clk 0:02:00]}  Qc8 {[%clk 0:02:11]} 17. Bd4 {[%clk 0:01:59]}  Nd7 {[%clk 0:02:09]} 18. f4 {[%clk 0:01:49]}  Nxc5 {[%clk 0:02:07]} 19. Bxc5 {[%clk 0:01:49]}  Re8 {[%clk 0:02:04]} 20. b5 {[%clk 0:01:48]}  f6 {[%clk 0:02:02]} 21. bxc6 {[%clk 0:01:44]}  bxc6 {[%clk 0:02:01]} 22. d4 {[%clk 0:01:44]}  Qf5 {[%clk 0:01:51]} 23. Qc2 {[%clk 0:01:41]}  Qxc2 {[%clk 0:01:41]} 24. Rxc2 {[%clk 0:01:42]}  Kf7 {[%clk 0:01:36]} 25. Rc3 {[%clk 0:01:40]}  Reb8 {[%clk 0:01:32]} 26. Bxa3 {[%clk 0:01:37]}  Ra6 {[%clk 0:01:29]} 27. Rfc1 {[%clk 0:01:02]}  Rba8 {[%clk 0:01:29]} 28. Bb4 {[%clk 0:01:02]}  Rxa2 {[%clk 0:01:29]} 29. Rxc6 {[%clk 0:01:03]}  R2a7 {[%clk 0:00:10]} 30. e6+ {[%clk 0:01:00]}  Kg8 {[%clk 0:00:10]} 31. Rc8+ {[%clk 0:00:45]}  Bf8 {[%clk 0:00:10]} 32. R1c7 {[%clk 0:00:36]}  Rxc7 {[%clk 0:00:07]} 33. Rxc7 {[%clk 0:00:34]}  Ra6 {[%clk 0:00:07]} 34. Bxe7 {[%clk 0:00:27]}  Rxe6 {[%clk 0:00:07]} 35. Bxf8 {[%clk 0:00:25]}  Kxf8 {[%clk 0:00:07]} 36. Kf2 {[%clk 0:00:26]}  Ra6 {[%clk 0:00:02]} 37. Rxh7 {[%clk 0:00:25]}  Ra5 {[%clk 0:00:01]} 38. Kf3 {[%clk 0:00:24]}  Kg8 {[%clk 0:00:01]} 39. Rd7 {[%clk 0:00:24]}  Rb5 {[%clk 0:00:01]} 40. g4 {[%clk 0:00:24]}  Kf8 {[%clk 0:00:01]} 41. h4 {[%clk 0:00:24]}  Kg8 {[%clk 0:00:01]} 42. g5 {[%clk 0:00:22]}  fxg5 {[%clk 0:00:01]} 43. hxg5 {[%clk 0:00:21]}  Kf8 {[%clk 0:00:01]} 44. Kg4 {[%clk 0:00:19]}  Kg8 {[%clk 0:00:01]} 45. f5 {[%clk 0:00:19]}  gxf5+ {[%clk 0:00:02]} 46. Kxf5 {[%clk 0:00:20]}  Rb3 {[%clk 0:00:02]} 47. Kf4 {[%clk 0:00:19]}  Rb5 {[%clk 0:00:02]} 48. g6 {[%clk 0:00:19]}  Kf8 {[%clk 0:00:02]} 49. Ke5 {[%clk 0:00:19]} 1-0


[Site "https://www.chess.com"]

[Event "Titled Tuesday Blitz October 11 Early 2022"]
[White "Kamsky, Gata"]
[Black "Csonka, Balazs"]
[WhiteFideId "2000024"]
[BlackFideId "742910"]
[WhiteElo "2666"]
[BlackElo "2404"]
[Result "1/2-1/2"]
[Round "06"]
[TimeControl "180+1"]
[Date "2022.10.11"]
[WhiteClock "0:00:19"]
[BlackClock "0:00:05"]

1. e4 {[%clk 0:03:00]}  c5 {[%clk 0:02:58]} 2. Nc3 {[%clk 0:02:55]}  Nc6 {[%clk 0:02:51]} 3. Bc4 {[%clk 0:02:52]}  Nf6 {[%clk 0:02:47]} 4. d3 {[%clk 0:02:51]}  e6 {[%clk 0:02:47]} 5. Nf3 {[%clk 0:02:49]}  d5 {[%clk 0:02:40]} 6. Bb5 {[%clk 0:02:47]}  Bd7 {[%clk 0:02:34]} 7. exd5 {[%clk 0:02:43]}  Nxd5 {[%clk 0:02:23]} 8. Nxd5 {[%clk 0:02:30]}  exd5 {[%clk 0:02:23]} 9. O-O {[%clk 0:02:31]}  Be7 {[%clk 0:02:22]} 10. Re1 {[%clk 0:02:24]}  O-O {[%clk 0:02:22]} 11. Bxc6 {[%clk 0:02:19]}  Bxc6 {[%clk 0:02:22]} 12. Ne5 {[%clk 0:02:19]}  Rc8 {[%clk 0:02:14]} 13. Qg4 {[%clk 0:02:17]}  Bf6 {[%clk 0:01:45]} 14. Bf4 {[%clk 0:02:09]}  d4 {[%clk 0:01:31]} 15. Nxc6 {[%clk 0:02:08]}  Rxc6 {[%clk 0:01:31]} 16. b3 {[%clk 0:02:07]}  Re8 {[%clk 0:01:21]} 17. a4 {[%clk 0:01:53]}  g6 {[%clk 0:01:01]} 18. Qf3 {[%clk 0:01:47]}  Qd7 {[%clk 0:00:54]} 19. h3 {[%clk 0:01:39]}  h5 {[%clk 0:00:50]} 20. Kf1 {[%clk 0:01:36]}  Rce6 {[%clk 0:00:47]} 21. Rxe6 {[%clk 0:01:33]}  Rxe6 {[%clk 0:00:48]} 22. g4 {[%clk 0:01:26]}  hxg4 {[%clk 0:00:45]} 23. hxg4 {[%clk 0:01:26]}  Be5 {[%clk 0:00:41]} 24. Bg5 {[%clk 0:01:24]}  Bg7 {[%clk 0:00:36]} 25. Re1 {[%clk 0:01:17]}  Rxe1+ {[%clk 0:00:32]} 26. Kxe1 {[%clk 0:01:17]}  f5 {[%clk 0:00:29]} 27. gxf5 {[%clk 0:01:15]}  Qxf5 {[%clk 0:00:27]} 28. Qg2 {[%clk 0:01:11]}  a6 {[%clk 0:00:21]} 29. Kf1 {[%clk 0:01:08]}  b5 {[%clk 0:00:17]} 30. a5 {[%clk 0:01:01]}  c4 {[%clk 0:00:14]} 31. Qg3 {[%clk 0:00:43]}  cxb3 {[%clk 0:00:09]} 32. cxb3 {[%clk 0:00:43]}  Qd5 {[%clk 0:00:09]} 33. b4 {[%clk 0:00:36]}  Bf8 {[%clk 0:00:09]} 34. Bd2 {[%clk 0:00:34]}  Qh1+ {[%clk 0:00:07]} 35. Ke2 {[%clk 0:00:34]}  Qh5+ {[%clk 0:00:07]} 36. f3 {[%clk 0:00:32]}  Qf5 {[%clk 0:00:07]} 37. Qb8 {[%clk 0:00:27]}  Qe6+ {[%clk 0:00:07]} 38. Kf2 {[%clk 0:00:25]}  Kf7 {[%clk 0:00:07]} 39. Qb7+ {[%clk 0:00:23]}  Kg8 {[%clk 0:00:07]} 40. Qb8 {[%clk 0:00:19]}  Qa2 {[%clk 0:00:05]} 41. Ke2 {[%clk 0:00:19]}  Qe6+ {[%clk 0:00:05]} 42. Kf2 {[%clk 0:00:19]} 1/2-1/2


[Site "https://www.chess.com"]

[Event "Titled Tuesday Blitz October 11 Early 2022"]
[White "Korchmar, Vasiliy"]
[Black "Fernandez Siles, Luis"]
[WhiteFideId "24131750"]
[BlackFideId "2209420"]
[WhiteElo "2370"]
[BlackElo "2186"]
[Result "1-0"]
[Round "06"]
[TimeControl "180+1"]
[Date "2022.10.12"]
[WhiteClock "0:01:40"]
[BlackClock "0:00:43"]

1. e4 {[%clk 0:03:00]}  c5 {[%clk 0:02:59]} 2. Nf3 {[%clk 0:03:01]}  Nc6 {[%clk 0:02:59]} 3. d4 {[%clk 0:03:01]}  cxd4 {[%clk 0:02:59]} 4. Nxd4 {[%clk 0:03:02]}  Nf6 {[%clk 0:03:00]} 5. Nc3 {[%clk 0:03:02]}  e5 {[%clk 0:03:00]} 6. Ndb5 {[%clk 0:03:03]}  d6 {[%clk 0:03:00]} 7. Nd5 {[%clk 0:03:02]}  Nxd5 {[%clk 0:03:00]} 8. exd5 {[%clk 0:03:03]}  Nb8 {[%clk 0:03:00]} 9. a4 {[%clk 0:02:55]}  Be7 {[%clk 0:02:59]} 10. Be2 {[%clk 0:02:55]}  O-O {[%clk 0:02:55]} 11. O-O {[%clk 0:02:55]}  f5 {[%clk 0:02:53]} 12. f4 {[%clk 0:02:54]}  a6 {[%clk 0:02:53]} 13. Na3 {[%clk 0:02:54]}  Nd7 {[%clk 0:02:45]} 14. Be3 {[%clk 0:02:53]}  Bf6 {[%clk 0:02:37]} 15. Nc4 {[%clk 0:02:52]}  exf4 {[%clk 0:02:26]} 16. Bxf4 {[%clk 0:02:53]}  Ne5 {[%clk 0:02:26]} 17. a5 {[%clk 0:02:05]}  Nxc4 {[%clk 0:02:21]} 18. Bxc4 {[%clk 0:02:06]}  Bxb2 {[%clk 0:02:13]} 19. Rb1 {[%clk 0:02:07]}  Bf6 {[%clk 0:02:10]} 20. Rb6 {[%clk 0:02:07]}  Qc7 {[%clk 0:01:58]} 21. Bb3 {[%clk 0:01:52]}  Qc5+ {[%clk 0:01:55]} 22. Kh1 {[%clk 0:01:52]}  Rd8 {[%clk 0:01:23]} 23. Re1 {[%clk 0:01:45]}  Qxa5 {[%clk 0:01:22]} 24. Rxd6 {[%clk 0:01:44]}  Bd7 {[%clk 0:01:10]} 25. Rxf6 {[%clk 0:01:38]}  gxf6 {[%clk 0:01:09]} 26. Re7 {[%clk 0:01:38]}  Re8 {[%clk 0:00:47]} 27. d6+ {[%clk 0:01:38]}  Kh8 {[%clk 0:00:48]} 28. Rxh7+ {[%clk 0:01:38]}  Kxh7 {[%clk 0:00:44]} 29. Qh5+ {[%clk 0:01:39]}  Kg7 {[%clk 0:00:43]} 30. Qh6# {[%clk 0:01:40]} 1-0


[Site "https://www.chess.com"]

[Event "Titled Tuesday Blitz October 11 Early 2022"]
[White "Koziorowicz, Michal"]
[Black "Demin, Vladimir"]
[WhiteFideId "21809194"]
[BlackFideId "4167457"]
[WhiteElo "2220"]
[BlackElo "2569"]
[Result "1-0"]
[Round "06"]
[TimeControl "180+1"]
[Date "2022.10.12"]
[WhiteClock "0:00:13"]
[BlackClock "0:00:01"]

1. Nc3 {[%clk 0:03:00]}  Nf6 {[%clk 0:02:56]} 2. e4 {[%clk 0:02:59]}  d5 {[%clk 0:02:56]} 3. f3 {[%clk 0:02:55]}  e5 {[%clk 0:02:46]} 4. Bd3 {[%clk 0:02:51]}  Bc5 {[%clk 0:02:44]} 5. Nge2 {[%clk 0:02:48]}  Nc6 {[%clk 0:02:37]} 6. exd5 {[%clk 0:02:48]}  Nxd5 {[%clk 0:02:37]} 7. b3 {[%clk 0:02:36]}  O-O {[%clk 0:02:29]} 8. Bb2 {[%clk 0:02:36]}  Ndb4 {[%clk 0:02:14]} 9. Bc4 {[%clk 0:02:20]}  Qh4+ {[%clk 0:02:11]} 10. Ng3 {[%clk 0:02:19]}  Nd4 {[%clk 0:02:09]} 11. Rc1 {[%clk 0:01:56]}  Bf5 {[%clk 0:01:59]} 12. Ne4 {[%clk 0:01:15]}  Bxe4 {[%clk 0:01:27]} 13. fxe4 {[%clk 0:01:15]}  Nxa2 {[%clk 0:01:15]} 14. c3 {[%clk 0:01:15]}  Ne6 {[%clk 0:00:56]} 15. Ra1 {[%clk 0:01:12]}  Nf4 {[%clk 0:00:49]} 16. Qf3 {[%clk 0:01:12]}  g5 {[%clk 0:00:20]} 17. Rxa2 {[%clk 0:01:09]}  g4 {[%clk 0:00:18]} 18. Qf1 {[%clk 0:01:09]}  Rad8 {[%clk 0:00:17]} 19. d4 {[%clk 0:01:06]}  Bd6 {[%clk 0:00:14]} 20. Bc1 {[%clk 0:00:57]}  Kh8 {[%clk 0:00:11]} 21. Rf2 {[%clk 0:00:56]}  f5 {[%clk 0:00:05]} 22. Nxf5 {[%clk 0:00:52]}  Qf6 {[%clk 0:00:02]} 23. g3 {[%clk 0:00:45]}  Nh3 {[%clk 0:00:01]} 24. Bh6 {[%clk 0:00:33]}  Rg8 {[%clk 0:00:01]} 25. Nxd6 {[%clk 0:00:27]}  Qxd6 {[%clk 0:00:01]} 26. Rf6 {[%clk 0:00:24]}  Qa3 {[%clk 0:00:02]} 27. Qe2 {[%clk 0:00:17]}  Qa1+ {[%clk 0:00:02]} 28. Kd2 {[%clk 0:00:15]}  Rxd4+ {[%clk 0:00:01]} 29. cxd4 {[%clk 0:00:14]}  Qxd4+ {[%clk 0:00:02]} 30. Kc2 {[%clk 0:00:13]}  b5 {[%clk 0:00:01]} 31. Bxg8 {[%clk 0:00:13]} 1-0


[Site "https://www.chess.com"]

[Event "Titled Tuesday Blitz October 11 Early 2022"]
[White "Lauridsen, Jesper Morch"]
[Black "Alexikov, Alexander"]
[WhiteFideId "1401890"]
[BlackFideId "14103958"]
[WhiteElo "2176"]
[BlackElo "2222"]
[Result "1-0"]
[Round "06"]
[TimeControl "180+1"]
[Date "2022.10.12"]
[WhiteClock "0:00:12"]
[BlackClock "0:00:11"]

1. e4 {[%clk 0:03:00]}  c5 {[%clk 0:02:59]} 2. c3 {[%clk 0:02:59]}  Nf6 {[%clk 0:02:57]} 3. e5 {[%clk 0:03:00]}  Nd5 {[%clk 0:02:57]} 4. Nf3 {[%clk 0:02:59]}  d6 {[%clk 0:02:56]} 5. Bc4 {[%clk 0:02:56]}  Nb6 {[%clk 0:02:55]} 6. Bb3 {[%clk 0:02:50]}  c4 {[%clk 0:02:52]} 7. Bxc4 {[%clk 0:02:43]}  Nxc4 {[%clk 0:02:51]} 8. Qa4+ {[%clk 0:02:42]}  Bd7 {[%clk 0:02:51]} 9. Qxc4 {[%clk 0:02:42]}  Bc6 {[%clk 0:02:47]} 10. e6 {[%clk 0:02:35]}  fxe6 {[%clk 0:02:42]} 11. Ng5 {[%clk 0:02:28]}  Bd5 {[%clk 0:02:32]} 12. Qf4 {[%clk 0:02:26]}  e5 {[%clk 0:02:24]} 13. Qg3 {[%clk 0:02:02]}  Nd7 {[%clk 0:02:04]} 14. Nxh7 {[%clk 0:01:58]}  Nf6 {[%clk 0:01:58]} 15. Qg6+ {[%clk 0:01:39]}  Bf7 {[%clk 0:01:54]} 16. Nxf6+ {[%clk 0:01:37]}  gxf6 {[%clk 0:01:54]} 17. Qe4 {[%clk 0:01:36]}  d5 {[%clk 0:01:51]} 18. Qa4+ {[%clk 0:01:35]}  Qd7 {[%clk 0:01:50]} 19. Qxd7+ {[%clk 0:01:35]}  Kxd7 {[%clk 0:01:50]} 20. d4 {[%clk 0:01:32]}  Rc8 {[%clk 0:01:42]} 21. O-O {[%clk 0:01:24]}  e4 {[%clk 0:01:32]} 22. Bf4 {[%clk 0:01:22]}  Bg7 {[%clk 0:01:30]} 23. Nd2 {[%clk 0:01:20]}  Rh4 {[%clk 0:01:24]} 24. Bg3 {[%clk 0:01:18]}  Rg4 {[%clk 0:01:23]} 25. f3 {[%clk 0:01:16]}  exf3 {[%clk 0:01:22]} 26. Nxf3 {[%clk 0:01:16]}  Bh6 {[%clk 0:01:16]} 27. Ne5+ {[%clk 0:01:11]}  fxe5 {[%clk 0:01:15]} 28. Rxf7 {[%clk 0:01:11]}  exd4 {[%clk 0:01:13]} 29. Re1 {[%clk 0:00:57]}  Be3+ {[%clk 0:01:04]} 30. Bf2 {[%clk 0:00:57]}  Bxf2+ {[%clk 0:00:53]} 31. Kxf2 {[%clk 0:00:55]}  Re8 {[%clk 0:00:53]} 32. h3 {[%clk 0:00:38]}  Rh4 {[%clk 0:00:52]} 33. Kg3 {[%clk 0:00:33]}  Rh6 {[%clk 0:00:39]} 34. cxd4 {[%clk 0:00:32]}  Rb6 {[%clk 0:00:34]} 35. b3 {[%clk 0:00:32]}  Rb4 {[%clk 0:00:33]} 36. Rf4 {[%clk 0:00:30]}  e6 {[%clk 0:00:31]} 37. Rc1 {[%clk 0:00:27]}  Re7 {[%clk 0:00:29]} 38. h4 {[%clk 0:00:26]}  a5 {[%clk 0:00:28]} 39. h5 {[%clk 0:00:26]}  a4 {[%clk 0:00:28]} 40. bxa4 {[%clk 0:00:26]}  Rxa4 {[%clk 0:00:27]} 41. h6 {[%clk 0:00:23]}  Rh7 {[%clk 0:00:25]} 42. Rh4 {[%clk 0:00:17]}  Rxa2 {[%clk 0:00:23]} 43. Rb1 {[%clk 0:00:17]}  Kc6 {[%clk 0:00:19]} 44. Re1 {[%clk 0:00:14]}  Kd6 {[%clk 0:00:18]} 45. Rh5 {[%clk 0:00:14]}  Rd2 {[%clk 0:00:14]} 46. Rh4 {[%clk 0:00:13]}  b5 {[%clk 0:00:13]} 47. Kh2 {[%clk 0:00:12]}  b4 {[%clk 0:00:11]} 48. Rb1 {[%clk 0:00:12]} 1-0


[Site "https://www.chess.com"]

[Event "Titled Tuesday Blitz October 11 Early 2022"]
[White "Le, Tuan Minh"]
[Black "Ohanyan, Emin"]
[WhiteFideId "12401153"]
[BlackFideId "13312022"]
[WhiteElo "2530"]
[BlackElo "2302"]
[Result "1-0"]
[Round "06"]
[TimeControl "180+1"]
[Date "2022.10.11"]
[WhiteClock "0:01:21"]
[BlackClock "0:01:19"]

1. d4 {[%clk 0:03:00]}  d6 {[%clk 0:02:52]} 2. e4 {[%clk 0:03:00]}  Nd7 {[%clk 0:02:52]} 3. Nf3 {[%clk 0:03:00]}  Ngf6 {[%clk 0:02:52]} 4. e5 {[%clk 0:02:55]}  Nd5 {[%clk 0:02:47]} 5. c4 {[%clk 0:02:38]}  N5b6 {[%clk 0:02:47]} 6. e6 {[%clk 0:02:39]}  fxe6 {[%clk 0:02:47]} 7. Bd3 {[%clk 0:02:39]}  c5 {[%clk 0:02:37]} 8. Ng5 {[%clk 0:02:16]}  Nf6 {[%clk 0:02:29]} 9. dxc5 {[%clk 0:02:17]}  dxc5 {[%clk 0:02:17]} 10. Nc3 {[%clk 0:01:59]}  e5 {[%clk 0:01:20]} 11. Nxh7 {[%clk 0:01:34]}  Kf7 {[%clk 0:01:20]} 12. Ng5+ {[%clk 0:01:32]}  Kg8 {[%clk 0:01:20]} 13. Bh7+ {[%clk 0:01:20]}  Nxh7 {[%clk 0:01:19]} 14. Qxd8 {[%clk 0:01:21]} 1-0


[Site "https://www.chess.com"]

[Event "Titled Tuesday Blitz October 11 Early 2022"]
[White "Liu, Xiangyi"]
[Black "Manukian, Artak"]
[WhiteFideId "8605718"]
[BlackFideId "13301373"]
[WhiteElo "2323"]
[BlackElo "2505"]
[Result "1/2-1/2"]
[Round "06"]
[TimeControl "180+1"]
[Date "2022.10.12"]
[WhiteClock "0:00:19"]
[BlackClock "0:00:17"]

1. e4 {[%clk 0:03:00]}  c6 {[%clk 0:02:57]} 2. d4 {[%clk 0:03:00]}  d5 {[%clk 0:02:57]} 3. Nc3 {[%clk 0:03:01]}  dxe4 {[%clk 0:02:57]} 4. Nxe4 {[%clk 0:03:02]}  Nf6 {[%clk 0:02:57]} 5. Ng3 {[%clk 0:02:56]}  Bg4 {[%clk 0:02:56]} 6. Be2 {[%clk 0:02:55]}  Bxe2 {[%clk 0:02:56]} 7. N1xe2 {[%clk 0:02:56]}  e6 {[%clk 0:02:57]} 8. O-O {[%clk 0:02:54]}  Bd6 {[%clk 0:02:55]} 9. c4 {[%clk 0:02:54]}  O-O {[%clk 0:02:55]} 10. Nc3 {[%clk 0:02:54]}  Nbd7 {[%clk 0:02:53]} 11. Nge4 {[%clk 0:02:51]}  Nxe4 {[%clk 0:02:50]} 12. Nxe4 {[%clk 0:02:52]}  Be7 {[%clk 0:02:44]} 13. Bf4 {[%clk 0:02:49]}  Nf6 {[%clk 0:02:43]} 14. Nc3 {[%clk 0:02:44]}  Qb6 {[%clk 0:02:31]} 15. Qd2 {[%clk 0:02:43]}  Rfd8 {[%clk 0:02:29]} 16. Rad1 {[%clk 0:02:37]}  Bb4 {[%clk 0:02:24]} 17. Rfe1 {[%clk 0:02:35]}  c5 {[%clk 0:01:55]} 18. dxc5 {[%clk 0:01:45]}  Bxc5 {[%clk 0:01:49]} 19. Qe2 {[%clk 0:01:37]}  Rxd1 {[%clk 0:01:37]} 20. Rxd1 {[%clk 0:01:36]}  h6 {[%clk 0:01:16]} 21. Na4 {[%clk 0:01:25]}  Qc6 {[%clk 0:01:15]} 22. Nxc5 {[%clk 0:01:25]}  Qxc5 {[%clk 0:01:16]} 23. b3 {[%clk 0:01:12]}  Qe7 {[%clk 0:01:07]} 24. Bd6 {[%clk 0:01:03]}  Qe8 {[%clk 0:01:02]} 25. h3 {[%clk 0:01:02]}  Rd8 {[%clk 0:01:02]} 26. Rd3 {[%clk 0:00:58]}  Qc6 {[%clk 0:00:58]} 27. Be7 {[%clk 0:00:58]}  Rxd3 {[%clk 0:00:56]} 28. Qxd3 {[%clk 0:00:59]}  Qd7 {[%clk 0:00:52]} 29. Qxd7 {[%clk 0:00:55]}  Nxd7 {[%clk 0:00:53]} 30. Kf1 {[%clk 0:00:55]}  f6 {[%clk 0:00:51]} 31. Ke2 {[%clk 0:00:55]}  Kf7 {[%clk 0:00:51]} 32. Bb4 {[%clk 0:00:55]}  g5 {[%clk 0:00:50]} 33. Bc3 {[%clk 0:00:51]}  e5 {[%clk 0:00:49]} 34. g4 {[%clk 0:00:50]}  Ke6 {[%clk 0:00:43]} 35. b4 {[%clk 0:00:47]}  f5 {[%clk 0:00:37]} 36. f3 {[%clk 0:00:47]}  Nf6 {[%clk 0:00:27]} 37. Kd3 {[%clk 0:00:42]}  h5 {[%clk 0:00:26]} 38. Bd2 {[%clk 0:00:39]}  hxg4 {[%clk 0:00:24]} 39. hxg4 {[%clk 0:00:39]}  e4+ {[%clk 0:00:20]} 40. Ke2 {[%clk 0:00:29]}  exf3+ {[%clk 0:00:17]} 41. Kxf3 {[%clk 0:00:29]}  fxg4+ {[%clk 0:00:17]} 42. Kg2 {[%clk 0:00:29]}  Ne4 {[%clk 0:00:13]} 43. Be3 {[%clk 0:00:29]}  a6 {[%clk 0:00:13]} 44. b5 {[%clk 0:00:29]}  axb5 {[%clk 0:00:13]} 45. cxb5 {[%clk 0:00:30]}  Kd5 {[%clk 0:00:13]} 46. a4 {[%clk 0:00:29]}  Kc4 {[%clk 0:00:13]} 47. a5 {[%clk 0:00:26]}  Kxb5 {[%clk 0:00:12]} 48. Bb6 {[%clk 0:00:26]}  Kc6 {[%clk 0:00:10]} 49. Bd8 {[%clk 0:00:25]}  Kd5 {[%clk 0:00:08]} 50. Bb6 {[%clk 0:00:25]}  Ke6 {[%clk 0:00:09]} 51. Be3 {[%clk 0:00:25]}  Kf5 {[%clk 0:00:09]} 52. Bb6 {[%clk 0:00:24]}  Nf6 {[%clk 0:00:08]} 53. Kg3 {[%clk 0:00:23]}  Nd5 {[%clk 0:00:08]} 54. Bc5 {[%clk 0:00:23]}  Nc3 {[%clk 0:00:08]} 55. Kg2 {[%clk 0:00:21]}  Ne2 {[%clk 0:00:06]} 56. Be3 {[%clk 0:00:19]}  Nf4+ {[%clk 0:00:04]} 57. Kg3 {[%clk 0:00:20]}  Ne6 {[%clk 0:00:02]} 58. Bb6 {[%clk 0:00:19]}  Ng7 {[%clk 0:00:01]} 59. Kg2 {[%clk 0:00:19]}  Ne8 {[%clk 0:00:01]} 60. Kg3 {[%clk 0:00:19]}  Nf6 {[%clk 0:00:02]} 61. Bd4 {[%clk 0:00:19]}  Ne4+ {[%clk 0:00:03]} 62. Kg2 {[%clk 0:00:19]}  Ke6 {[%clk 0:00:04]} 63. Bb6 {[%clk 0:00:19]}  Kd5 {[%clk 0:00:04]} 64. Bd8 {[%clk 0:00:20]}  Kc4 {[%clk 0:00:05]} 65. Bb6 {[%clk 0:00:20]}  Kb5 {[%clk 0:00:06]} 66. Bd8 {[%clk 0:00:20]}  Nd6 {[%clk 0:00:06]} 67. Kg3 {[%clk 0:00:20]}  Nc4 {[%clk 0:00:06]} 68. Kxg4 {[%clk 0:00:19]}  Nxa5 {[%clk 0:00:07]} 69. Kxg5 {[%clk 0:00:18]}  Nc4 {[%clk 0:00:08]} 70. Bf6 {[%clk 0:00:19]}  Ka4 {[%clk 0:00:09]} 71. Kf4 {[%clk 0:00:19]}  b5 {[%clk 0:00:10]} 72. Ke4 {[%clk 0:00:19]}  b4 {[%clk 0:00:10]} 73. Kd3 {[%clk 0:00:19]}  Kb5 {[%clk 0:00:10]} 74. Kc2 {[%clk 0:00:19]}  Ka4 {[%clk 0:00:10]} 75. Bg7 {[%clk 0:00:19]}  b3+ {[%clk 0:00:10]} 76. Kb1 {[%clk 0:00:19]}  Nd2+ {[%clk 0:00:10]} 77. Kb2 {[%clk 0:00:19]}  Ne4 {[%clk 0:00:11]} 78. Kb1 {[%clk 0:00:19]}  Kb4 {[%clk 0:00:12]} 79. Bf8+ {[%clk 0:00:19]}  Kc4 {[%clk 0:00:12]} 80. Bg7 {[%clk 0:00:20]}  Nc5 {[%clk 0:00:12]} 81. Kb2 {[%clk 0:00:20]}  Na4+ {[%clk 0:00:13]} 82. Kb1 {[%clk 0:00:20]}  Nc3+ {[%clk 0:00:14]} 83. Bxc3 {[%clk 0:00:18]}  Kxc3 {[%clk 0:00:15]} 84. Kc1 {[%clk 0:00:18]}  Kb4 {[%clk 0:00:15]} 85. Kb2 {[%clk 0:00:18]}  Ka4 {[%clk 0:00:16]} 86. Kb1 {[%clk 0:00:18]}  Ka3 {[%clk 0:00:16]} 87. Ka1 {[%clk 0:00:19]}  b2+ {[%clk 0:00:16]} 88. Kb1 {[%clk 0:00:19]}  Kb3 {[%clk 0:00:17]} 1/2-1/2


[Site "https://www.chess.com"]